fUSD/lending_fUSD_20260612
["ID","MTS","AMOUNT","RATE_DAILY","PERIOD"]
[424880649,1781231446000,-208.75109454,0.00029487,7]
[424880629,1781231446000,-474.35259311,0.00029471,7]
[424880645,1781231446000,-223.67928182,0.00029487,7]
[424880661,1781231446000,-491.0,0.00029787,2]
[424880647,1781231446000,-219.71235648,0.00029487,2]
[424880652,1781231446000,-211.59466967,0.00029487,7]
[424880663,1781231446000,-3513.32,0.00029822,120]
[424880665,1781231446000,-5826.42737651,0.00029842,2]
[424880668,1781231446000,-504.0,0.00029851,11]
[424880654,1781231446000,-5826.42737651,0.00029633,2]
[424880670,1781231446000,-491.0,0.00029863,2]
[424880659,1781231446000,-5826.42737651,0.00029712,2]
[424880674,1781231446000,-491.0,0.00029924,2]
[424880656,1781231446000,-5826.42737651,0.00029669,2]
[424880620,1781231446000,-419.718872,0.00029469,7]
[424880642,1781231446000,-436.35684265,0.00029472,7]
[424880617,1781231446000,-7500.0,0.00029463,7]
[424880574,1781231446000,-252.0,0.00029129,30]
[424880609,1781231446000,-153.62,0.00029268,7]
[424880555,1781231446000,-253.74,0.00029,30]
[424880557,1781231446000,-151.0,0.00029,2]
[424880566,1781231446000,-465.0,0.00029129,30]
[424880564,1781231446000,-227.0,0.00029129,30]
[424880569,1781231446000,-157.0,0.00029129,30]
[424880559,1781231446000,-1348.02,0.00029062,9]
[424880562,1781231446000,-151.0,0.00029096,2]
[424880571,1781231446000,-181.0,0.00029129,30]
[424880578,1781231446000,-243.0,0.00029129,30]
[424880576,1781231446000,-244.0,0.00029129,30]
[424880580,1781231446000,-155.0,0.00029129,30]
[424880622,1781231446000,-160.57406239,0.00029471,7]
[424880590,1781231446000,-347.0,0.00029162,30]
[424880672,1781231446000,-180.5665502,0.000299,2]
[424880592,1781231446000,-222.0,0.00029162,30]
[424880588,1781231446000,-155.0,0.00029162,30]
[424880585,1781231446000,-175.0,0.00029162,30]
[424880599,1781231446000,-644.05,0.00029242,2]
[424880596,1781231446000,-157.51838469,0.00029235,2]
[424880594,1781231446000,-1085.91,0.00029176,4]
[424880601,1781231446000,-3513.32,0.00029247,120]
[424880604,1781231446000,-575.42,0.00029264,2]
[424880613,1781231446000,-1164.01,0.00029372,14]
[424880606,1781231446000,-1164.01,0.00029265,6]
[424880583,1781231446000,-907.0,0.00029162,30]
[424880690,1781231446000,-94200.0,0.0003,5]
[424880758,1781231446000,-398.05419325,0.00030061,7]
[424880679,1781231446000,-491.0,0.00029929,2]
[424880735,1781231446000,-439.42471297,0.00030061,2]
[424880742,1781231446000,-417.50218907,0.00030061,7]
[424880749,1781231446000,-447.35856364,0.00030061,7]
[424880751,1781231446000,-444.09682652,0.00030061,7]
[424880753,1781231446000,-181.66088399,0.00030061,7]
[424880765,1781231446000,-644.16,0.00030087,2]
[424880763,1781231446000,-332.53545594,0.00030072,2]
[424880767,1781231446000,-227.0,0.00030129,30]
[424880760,1781231446000,-644.05,0.00030062,2]
[424880761,1781231446000,-491.0,0.00030072,2]
[424880756,1781231446000,-185.56821878,0.00030061,7]
[424880744,1781231446000,-194.26899729,0.00030061,7]
[424880759,1781231446000,-325.38,0.00030062,2]
[424880769,1781231446000,-465.0,0.00030129,30]
[424880771,1781231446000,-157.0,0.00030129,30]
[424880773,1781231446000,-181.0,0.00030129,30]
[424880777,1781231446000,-244.0,0.00030129,30]
[424880788,1781231446000,-646.86723645,0.0003013,2]
[424880784,1781231446000,-1887.45,0.00030129,7]
[424880781,1781231446000,-155.0,0.00030129,30]
[424880779,1781231446000,-243.0,0.00030129,30]
[424880775,1781231446000,-252.0,0.00030129,30]
[424880786,1781231446000,-11738.24682679,0.0003013,2]
[424880696,1781231446000,-342.66,0.0003,2]
[424880757,1781231446000,-154.05580023,0.00030061,7]
[424880746,1781231446000,-423.18933933,0.00030061,7]
[424880755,1781231446000,-160.25063226,0.00030061,7]
[424880731,1781231446000,-654.53526398,0.00030045,7]
[424880738,1781231446000,-284.88636427,0.00030061,7]
[424880681,1781231446000,-5826.42737651,0.00029961,2]
[424880687,1781231446000,-2500.0,0.0003,2]
[424880694,1781231446000,-398.17,0.0003,2]
[424880699,1781231446000,-209.67,0.0003,2]
[424880677,1781231446000,-491.0,0.00029926,2]
[424880685,1781231446000,-316.0841448,0.0003,120]
[424880683,1781231446000,-2028.52,0.00029994,7]
[424880701,1781231446000,-301.73,0.0003,2]
[424880714,1781231446000,-461.17882281,0.00030045,7]
[424880703,1781231446000,-699.58,0.0003,2]
[424880712,1781231446000,-321.14812478,0.00030045,7]
[424880692,1781231446000,-160.0,0.0003,120]
[424880710,1781231446000,-629.578308,0.00030043,7]
[424880716,1781231446000,-647.67854148,0.00030045,7]
[424880740,1781231446000,-218.2486721,0.00030061,7]
[424880733,1781231446000,-245.19300757,0.00030061,7]
[424880727,1781231446000,-610.02338144,0.00030045,7]
[424880725,1781231446000,-636.46388301,0.00030045,7]
[424880729,1781231446000,-656.74718954,0.00030045,7]
[424880719,1781231446000,-632.47012415,0.00030045,7]
[424880705,1781231446000,-286.58,0.0003,2]
[424880707,1781231446000,-160.0,0.0003,120]
[424880721,1781231446000,-783.61382709,0.00030045,7]
[424880722,1781231446000,-803.47892983,0.00030045,7]
[424880871,1781231447000,-1004.34866228,0.00030619,7]
[424880869,1781231447000,-790.58765519,0.00030619,7]
[424880866,1781231447000,-809.59817685,0.00030619,7]
[424880853,1781231447000,-1227.0,0.00030339,2]
[424880864,1781231447000,-1589.425,0.00030571,7]
[424880855,1781231447000,-1358.0,0.00030339,2]
[424880849,1781231447000,-1275.0,0.00030339,2]
[424880860,1781231447000,-320.0,0.00030562,16]
[424880862,1781231447000,-6565.26399695,0.00030571,7]
[424880881,1781231447000,-201.0,0.0003084,30]
[424880858,1781231447000,-150.0,0.00030459,30]
[424880877,1781231447000,-504.0,0.00030746,12]
[424880887,1781231447000,-3513.32,0.00030973,120]
[424880879,1781231447000,-150.0,0.00030782,30]
[424880875,1781231447000,-150.0,0.00030659,2]
[424880873,1781231447000,-3858.0,0.00030659,10]
[424880883,1781231447000,-396.12,0.00030885,2]
[424880891,1781231447000,-500.0,0.00031,120]
[424880889,1781231447000,-320.0,0.00030975,18]
[424880895,1781231447000,-215.95576085,0.00031,30]
[424880893,1781231447000,-503.0,0.00031,120]
[424880897,1781231447000,-215.95576085,0.00031,10]
[424880899,1781231447000,-160.0,0.00031,30]
[424880851,1781231447000,-382.0,0.00030339,2]
[424880885,1781231447000,-482.22,0.00030909,2]
[424880847,1781231447000,-3513.32,0.00030247,120]
[424880790,1781231447000,-205.70713865,0.0003013,2]
[424880845,1781231447000,-633.3,0.00030239,2]
[424880901,1781231447000,-265.0,0.00031042,2]
[424880792,1781231447000,-480.62840678,0.0003013,2]
[424880794,1781231447000,-302.73585079,0.0003013,2]
[424880796,1781231447000,-12329.5723623,0.0003013,2]
[424880800,1781231447000,-1920.06248016,0.0003013,2]
[424880798,1781231447000,-18760.36281128,0.0003013,7]
[424880804,1781231447000,-2000.35698612,0.0003013,120]
[424880809,1781231447000,-178.04015477,0.00030137,40]
[424880802,1781231447000,-30059.13045164,0.0003013,2]
[424880807,1781231447000,-225.71,0.00030137,5]
[424880813,1781231447000,-3726.0,0.00030137,120]
[424880815,1781231447000,-10000.0,0.00030137,30]
[424880811,1781231447000,-320.0,0.00030137,15]
[424880817,1781231447000,-1022.267,0.00030137,30]
[424880819,1781231447000,-3137.0,0.00030137,120]
[424880823,1781231447000,-169.34,0.00030137,30]
[424880832,1781231447000,-155.0,0.00030162,30]
[424880830,1781231447000,-175.0,0.00030162,30]
[424880821,1781231447000,-257.0,0.00030137,120]
[424880828,1781231447000,-907.0,0.00030162,30]
[424880826,1781231447000,-152.0,0.00030137,120]
[424880836,1781231447000,-222.0,0.00030162,30]
[424880839,1781231447000,-158.41,0.000302,7]
[424880841,1781231447000,-150.0,0.00030206,2]
[424880834,1781231447000,-347.0,0.00030162,30]
[424880843,1781231447000,-1664.39715097,0.0003021,7]
[424880908,1781231447000,-227.0,0.00031129,30]
[424880910,1781231447000,-465.0,0.00031129,30]
[424880913,1781231447000,-157.0,0.00031129,30]
[424880973,1781231447000,-3513.32,0.00031548,120]
[424880975,1781231447000,-150.0,0.0003164,30]
[424880987,1781231447000,-459.0783251,0.00031685,2]
[424880977,1781231447000,-504.0,0.00031642,13]
[424880980,1781231447000,-2028.52,0.0003166,14]
[424880989,1781231447000,-9227.438286,0.00031685,2]
[424880993,1781231447000,-150.0,0.00031716,2]
[424880991,1781231447000,-366.2526285,0.00031692,2]
[424880995,1781231447000,-150.0,0.00031749,30]
[424881009,1781231447000,-5788.0,0.00031885,10]
[424881007,1781231447000,-151.0,0.00031835,2]
[424881000,1781231447000,-320.0,0.00031768,21]
[424880984,1781231447000,-50053.9245174,0.00031683,2]
[424881002,1781231447000,-150.0,0.00031792,30]
[424881012,1781231447000,-150.0,0.00031885,3]
[424881016,1781231447000,-7260.98951181,0.00031905,2]
[424881014,1781231447000,-298.17,0.000319,2]
[424881019,1781231447000,-150.0,0.00031944,30]
[424881032,1781231447000,-212.97669286,0.00032,120]
[424881030,1781231447000,-186.27637768,0.00032,120]
[424881034,1781231447000,-187.69831663,0.00032,120]
[424881021,1781231447000,-150.0,0.00031987,30]
[424881023,1781231447000,-1887.45,0.00031999,7]
[424881025,1781231447000,-407.19398704,0.00032,120]
[424880903,1781231447000,-226.47,0.00031096,5]
[424881027,1781231447000,-185.87068678,0.00032,120]
[424881004,1781231447000,-971.51653064,0.00031816,7]
[424880982,1781231447000,-19763.107254,0.00031674,2]
[424880997,1781231447000,-628.38564448,0.00031758,2]
[424880968,1781231447000,-1746.9895,0.000315,20]
[424880970,1781231447000,-169.34,0.00031507,30]
[424880917,1781231447000,-252.0,0.00031129,30]
[424880915,1781231447000,-181.0,0.00031129,30]
[424880919,1781231447000,-244.0,0.00031129,30]
[424880925,1781231447000,-907.0,0.00031162,30]
[424880921,1781231447000,-243.0,0.00031129,30]
[424880927,1781231447000,-175.0,0.00031162,30]
[424880923,1781231447000,-155.0,0.00031129,30]
[424880938,1781231447000,-320.0,0.00031377,19]
[424880936,1781231447000,-2442.73462334,0.00031342,7]
[424880931,1781231447000,-347.0,0.00031162,30]
[424880929,1781231447000,-155.0,0.00031162,30]
[424880933,1781231447000,-222.0,0.00031162,30]
[424880905,1781231447000,-150.0,0.00031104,30]
[424880942,1781231447000,-948.70518623,0.0003148,7]
[424880940,1781231447000,-971.51781222,0.0003148,7]
[424880954,1781231447000,-150.0,0.00031488,30]
[424880961,1781231447000,-150.0,0.00031488,30]
[424880963,1781231447000,-150.0,0.00031488,30]
[424880959,1781231447000,-150.0,0.00031488,30]
[424880966,1781231447000,-150.0,0.00031488,30]
[424880949,1781231447000,-225.55820032,0.00031488,30]
[424880947,1781231447000,-257.55563188,0.00031488,30]
[424880951,1781231447000,-150.0,0.00031488,30]
[424880944,1781231447000,-150.0,0.00031488,30]
[424880956,1781231447000,-150.0,0.00031488,30]
[424881121,1781231448000,-1887.45,0.00032231,7]
[424881117,1781231448000,-633.3,0.0003221,5]
[424881113,1781231448000,-222.0,0.00032162,30]
[424881115,1781231448000,-150.0,0.00032187,30]
[424881102,1781231448000,-320.0,0.00032147,23]
[424881114,1781231448000,-150.0,0.00032187,30]
[424881098,1781231448000,-243.0,0.00032129,30]
[424881108,1781231448000,-155.0,0.00032162,30]
[424881111,1781231448000,-347.0,0.00032162,30]
[424881119,1781231448000,-1887.45,0.00032231,7]
[424881100,1781231448000,-155.0,0.00032129,30]
[424881122,1781231448000,-1887.45,0.00032231,7]
[424881133,1781231448000,-150.0,0.00032248,30]
[424881131,1781231448000,-100000.0,0.00032232,60]
[424881125,1781231448000,-1887.6893492,0.00032231,7]
[424881129,1781231448000,-100000.0,0.00032232,120]
[424881127,1781231448000,-100000.0,0.00032232,90]
[424881136,1781231448000,-150.0,0.0003246,2]
[424881134,1781231448000,-150.0,0.000324,30]
[424881144,1781231448000,-504.0,0.00032537,14]
[424881146,1781231448000,-150.0,0.00032552,30]
[424881139,1781231448000,-1013.1032934,0.000325,7]
[424881137,1781231448000,-150.0,0.00032487,30]
[424881155,1781231448000,-633.68,0.000326,20]
[424881093,1781231448000,-252.0,0.00032129,30]
[424881124,1781231448000,-1887.45,0.00032231,7]
[424881095,1781231448000,-244.0,0.00032129,30]
[424881036,1781231448000,-164.58473457,0.00032,120]
[424881106,1781231448000,-175.0,0.00032162,30]
[424881150,1781231448000,-1456.8858,0.000326,30]
[424881038,1781231448000,-160.76412736,0.00032,120]
[424881041,1781231448000,-184.54162468,0.00032,120]
[424881043,1781231448000,-174.25490651,0.00032,120]
[424881046,1781231448000,-190.70801846,0.00032,120]
[424881054,1781231448000,-172.54293024,0.00032,120]
[424881059,1781231448000,-186.63959282,0.00032,120]
[424881048,1781231448000,-627.34287568,0.00032,120]
[424881057,1781231448000,-168.3978096,0.00032,120]
[424881050,1781231448000,-178.25990567,0.00032,120]
[424881052,1781231448000,-506.74040645,0.00032,120]
[424881061,1781231448000,-786.84601873,0.00032,120]
[424881104,1781231448000,-907.0,0.00032162,30]
[424881066,1781231448000,-509.69022936,0.00032,120]
[424881068,1781231448000,-5031.00273738,0.00032,4]
[424881080,1781231448000,-150.0,0.00032096,30]
[424881069,1781231448000,-33769.46398289,0.00032,5]
[424881082,1781231448000,-3513.32,0.00032123,120]
[424881072,1781231448000,-158.41,0.00032,7]
[424881084,1781231448000,-227.0,0.00032129,30]
[424881086,1781231448000,-465.0,0.00032129,30]
[424881074,1781231448000,-256.5126353,0.00032,120]
[424881076,1781231448000,-226.9,0.00032055,5]
[424881078,1781231448000,-150.0,0.00032071,30]
[424881089,1781231448000,-157.0,0.00032129,30]
[424881091,1781231448000,-181.0,0.00032129,30]
[424881063,1781231448000,-188.4317516,0.00032,120]
[424881143,1781231448000,-219.02,0.00032519,2]
[424881153,1781231448000,-633.38,0.000326,30]
[424881141,1781231448000,-320.0,0.00032516,24]
[424881211,1781231448000,-152.582154,0.00032877,7]
[424881200,1781231448000,-151.0,0.00032877,7]
[424881201,1781231448000,-166.190952,0.00032877,7]
[424881204,1781231448000,-286.967806,0.00032877,7]
[424881206,1781231448000,-209.432558,0.00032877,7]
[424881203,1781231448000,-154.774495,0.00032877,7]
[424881217,1781231448000,-151.0,0.00032877,7]
[424881218,1781231448000,-151.0,0.00032877,7]
[424881220,1781231448000,-197.392951,0.00032877,7]
[424881222,1781231448000,-151.0,0.00032877,7]
[424881225,1781231448000,-151.0,0.00032877,7]
[424881231,1781231448000,-151.0,0.00032877,7]
[424881215,1781231448000,-168.793865,0.00032877,7]
[424881224,1781231448000,-151.0,0.00032877,7]
[424881232,1781231448000,-213.77132,0.00032877,7]
[424881229,1781231448000,-151.0,0.00032877,7]
[424881227,1781231448000,-151.0,0.00032877,7]
[424881236,1781231448000,-213.77132,0.00032877,7]
[424881238,1781231448000,-151.0,0.00032877,7]
[424881239,1781231448000,-213.77132,0.00032877,7]
[424881241,1781231448000,-151.0,0.00032877,7]
[424881242,1781231448000,-213.77132,0.00032877,7]
[424881244,1781231448000,-151.0,0.00032877,7]
[424881246,1781231448000,-213.77132,0.00032877,7]
[424881251,1781231448000,-151.0,0.00032877,7]
[424881247,1781231448000,-151.0,0.00032877,7]
[424881234,1781231448000,-151.0,0.00032877,7]
[424881213,1781231448000,-176.476368,0.00032877,7]
[424881249,1781231448000,-213.77132,0.00032877,7]
[424881208,1781231448000,-151.0,0.00032877,7]
[424881210,1781231448000,-151.0,0.00032877,7]
[424881151,1781231448000,-633.38,0.000326,10]
[424881156,1781231448000,-633.68,0.000326,30]
[424881170,1781231448000,-1133.43744759,0.00032772,7]
[424881160,1781231448000,-1805.329,0.000326,30]
[424881165,1781231448000,-150.0,0.00032705,30]
[424881158,1781231448000,-1805.329,0.000326,20]
[424881168,1781231448000,-212.0,0.00032766,3]
[424881163,1781231448000,-150.0,0.00032654,30]
[424881172,1781231448000,-1106.82271727,0.00032772,7]
[424881166,1781231448000,-1664.39715097,0.00032708,7]
[424881175,1781231448000,-2619.168,0.000328,10]
[424881161,1781231448000,-1805.33,0.000326,30]
[424881148,1781231448000,-3513.32,0.00032575,120]
[424881188,1781231448000,-151.0,0.00032877,7]
[424881173,1781231448000,-2619.168,0.000328,30]
[424881198,1781231448000,-151.0,0.00032877,7]
[424881196,1781231448000,-151.0,0.00032877,7]
[424881195,1781231448000,-153.856381,0.00032877,7]
[424881193,1781231448000,-274.760788,0.00032877,7]
[424881184,1781231448000,-201.0,0.0003286,30]
[424881182,1781231448000,-150.0,0.00032857,30]
[424881179,1781231448000,-6565.26399695,0.00032819,7]
[424881191,1781231448000,-191.923009,0.00032877,7]
[424881189,1781231448000,-166.841507,0.00032877,7]
[424881177,1781231448000,-2619.16,0.000328,20]
[424881186,1781231448000,-320.0,0.00032875,26]
[424881181,1781231448000,-1589.425,0.00032819,7]
[424881340,1781231449000,-244.0,0.00033129,30]
[424881346,1781231449000,-155.0,0.00033129,30]
[424881343,1781231449000,-243.0,0.00033129,30]
[424881335,1781231449000,-252.0,0.00033129,30]
[424881323,1781231449000,-227.0,0.00033129,30]
[424881327,1781231449000,-157.0,0.00033129,30]
[424881326,1781231449000,-465.0,0.00033129,30]
[424881322,1781231449000,-156.69078566,0.00033123,120]
[424881320,1781231449000,-156.82473015,0.00033109,5]
[424881332,1781231449000,-181.0,0.00033129,30]
[424881357,1781231449000,-907.0,0.00033162,30]
[424881368,1781231449000,-320.0,0.00033224,28]
[424881350,1781231449000,-1570.0,0.00033151,30]
[424881362,1781231449000,-155.0,0.00033162,30]
[424881353,1781231449000,-150.0,0.00033161,30]
[424881360,1781231449000,-175.0,0.00033162,30]
[424881318,1781231449000,-152.0,0.00033109,4]
[424881370,1781231449000,-3513.32,0.00033233,120]
[424881366,1781231449000,-222.0,0.00033162,30]
[424881372,1781231449000,-150.0,0.00033237,30]
[424881378,1781231449000,-150.0,0.00033313,30]
[424881376,1781231449000,-150.0,0.00033302,2]
[424881380,1781231449000,-2028.52,0.00033326,30]
[424881374,1781231449000,-1652.40882065,0.00033245,2]
[424881382,1781231449000,-1275.0,0.00033339,2]
[424881364,1781231449000,-347.0,0.00033162,30]
[424881316,1781231449000,-1000.0,0.00033083,120]
[424881291,1781231449000,-186.63959282,0.00033,120]
[424881297,1781231449000,-62928.82277024,0.00033,2]
[424881384,1781231449000,-382.0,0.00033339,2]
[424881252,1781231449000,-1570.0,0.00032877,30]
[424881258,1781231449000,-150.0,0.00032887,30]
[424881256,1781231449000,-169.34,0.00032877,30]
[424881254,1781231449000,-518.444558,0.00032877,120]
[424881260,1781231449000,-150.0,0.00032887,30]
[424881262,1781231449000,-888.2,0.000329,120]
[424881274,1781231449000,-212.97669286,0.00033,120]
[424881279,1781231449000,-164.58473457,0.00033,120]
[424881271,1781231449000,-186.27637768,0.00033,120]
[424881281,1781231449000,-160.76412736,0.00033,120]
[424881264,1781231449000,-150.0,0.00032987,30]
[424881314,1781231449000,-399.94,0.00033014,5]
[424881277,1781231449000,-187.69831663,0.00033,120]
[424881283,1781231449000,-184.54162468,0.00033,120]
[424881287,1781231449000,-627.34287568,0.00033,120]
[424881301,1781231449000,-2481.99572698,0.00033,2]
[424881303,1781231449000,-8053.10509546,0.00033,7]
[424881289,1781231449000,-506.74040645,0.00033,120]
[424881296,1781231449000,-509.69022936,0.00033,120]
[424881293,1781231449000,-786.84601873,0.00033,120]
[424881305,1781231449000,-5000.0,0.00033,3]
[424881308,1781231449000,-351.6765903,0.00033,120]
[424881310,1781231449000,-256.5126353,0.00033,120]
[424881312,1781231449000,-150.0,0.00033009,30]
[424881299,1781231449000,-5189.999999,0.00033,30]
[424881268,1781231449000,-407.19398704,0.00033,120]
[424881285,1781231449000,-190.70801846,0.00033,120]
[424881396,1781231449000,-190.0,0.00033418,3]
[424881394,1781231449000,-7717.0,0.00033418,10]
[424881462,1781231449000,-627.34287568,0.000339,120]
[424881456,1781231449000,-187.69831663,0.000339,120]
[424881452,1781231449000,-186.27637768,0.000339,120]
[424881464,1781231449000,-506.74040645,0.000339,120]
[424881458,1781231449000,-164.58473457,0.000339,120]
[424881467,1781231449000,-786.84601873,0.000339,120]
[424881471,1781231449000,-888.2,0.000339,120]
[424881460,1781231449000,-160.76412736,0.000339,120]
[424881469,1781231449000,-509.69022936,0.000339,120]
[424881473,1781231449000,-256.5126353,0.000339,120]
[424881475,1781231449000,-150.0,0.00033921,120]
[424881480,1781231449000,-4714.58834976,0.00033949,2]
[424881454,1781231449000,-212.97669286,0.000339,120]
[424881482,1781231449000,-150.0,0.00033969,120]
[424881485,1781231449000,-1570.0,0.00033973,30]
[424881494,1781231449000,-5000.0,0.00034,2]
[424881489,1781231449000,-150.0,0.00033987,30]
[424881487,1781231449000,-387.56306584,0.0003398,30]
[424881491,1781231449000,-374.4491521,0.00034,10]
[424881498,1781231449000,-763.04,0.00034,30]
[424881500,1781231449000,-894.24855303,0.00034,2]
[424881502,1781231449000,-177.57473726,0.00034,30]
[424881504,1781231449000,-177.57473726,0.00034,30]
[424881506,1781231449000,-177.57473726,0.00034,60]
[424881508,1781231449000,-177.57473726,0.00034,60]
[424881388,1781231449000,-1358.0,0.00033339,2]
[424881496,1781231449000,-891.0,0.00034,120]
[424881450,1781231449000,-407.19398704,0.000339,120]
[424881478,1781231449000,-150.0,0.00033922,30]
[424881446,1781231449000,-150.0,0.0003385,120]
[424881390,1781231449000,-217.98,0.00033348,7]
[424881448,1781231449000,-320.0,0.00033892,32]
[424881392,1781231449000,-500.0,0.00033356,60]
[424881386,1781231449000,-1227.0,0.00033339,2]
[424881398,1781231449000,-1570.0,0.00033425,30]
[424881399,1781231449000,-504.0,0.00033433,14]
[424881410,1781231449000,-150.0,0.00033587,30]
[424881402,1781231449000,-150.334634,0.00033463,2]
[424881406,1781231449000,-150.0,0.00033487,30]
[424881415,1781231449000,-150.0,0.00033617,30]
[424881417,1781231449000,-21724.65726272,0.00033681,2]
[424881412,1781231449000,-150.0,0.00033587,30]
[424881408,1781231449000,-320.0,0.00033563,30]
[424881404,1781231449000,-150.0,0.00033465,30]
[424881421,1781231449000,-1570.0,0.00033699,30]
[424881444,1781231449000,-231.52351058,0.00033827,4]
[424881419,1781231449000,-606.600001,0.00033681,2]
[424881442,1781231449000,-150.0,0.00033826,120]
[424881440,1781231449000,-150.0,0.0003382,30]
[424881436,1781231449000,-630.130941,0.00033777,120]
[424881432,1781231449000,-3513.32,0.00033753,120]
[424881438,1781231449000,-1010.0,0.000338,30]
[424881434,1781231449000,-150.0,0.00033769,30]
[424881428,1781231449000,-2114.95,0.000337,20]
[424881430,1781231449000,-726.31724451,0.00033705,120]
[424881423,1781231449000,-1416.153,0.000337,10]
[424881426,1781231449000,-1416.15,0.000337,20]
[424881621,1781231450000,-300.0,0.0003449,2]
[424881582,1781231450000,-5000.0,0.000344,120]
[424881585,1781231450000,-5800.0,0.00034416,2]
[424881579,1781231450000,-504.0,0.00034328,15]
[424881581,1781231450000,-5800.0,0.00034399,2]
[424881577,1781231450000,-150.0,0.00034292,120]
[424881580,1781231450000,-150.0,0.00034378,30]
[424881586,1781231450000,-5800.0,0.00034425,2]
[424881584,1781231450000,-5800.0,0.00034408,2]
[424881587,1781231450000,-3513.32,0.00034425,120]
[424881591,1781231450000,-5800.0,0.0003445,2]
[424881583,1781231450000,-150.0,0.00034403,30]
[424881597,1781231450000,-24697.50973962,0.00034475,10]
[424881629,1781231450000,-300.0,0.0003449,2]
[424881599,1781231450000,-150.0,0.00034486,120]
[424881593,1781231450000,-7500.0,0.00034463,7]
[424881601,1781231450000,-300.0,0.0003449,2]
[424881603,1781231450000,-300.0,0.0003449,2]
[424881589,1781231450000,-5800.0,0.00034442,2]
[424881605,1781231450000,-300.0,0.0003449,2]
[424881607,1781231450000,-300.0,0.0003449,2]
[424881613,1781231450000,-300.0,0.0003449,2]
[424881609,1781231450000,-1098.78445781,0.0003449,2]
[424881611,1781231450000,-300.0,0.0003449,2]
[424881511,1781231450000,-3000.0,0.00034,3]
[424881578,1781231450000,-240.24,0.00034323,120]
[424881595,1781231450000,-525.78430105,0.00034475,10]
[424881575,1781231450000,-150.0,0.00034287,30]
[424881522,1781231450000,-227.0,0.00034129,30]
[424881573,1781231450000,-150.0,0.00034287,30]
[424881520,1781231450000,-616.701371,0.00034078,120]
[424881515,1781231450000,-150.0,0.00034024,120]
[424881513,1781231450000,-150.0,0.00034009,120]
[424881518,1781231450000,-150.0,0.00034074,30]
[424881525,1781231450000,-465.0,0.00034129,30]
[424881527,1781231450000,-157.0,0.00034129,30]
[424881531,1781231450000,-252.0,0.00034129,30]
[424881529,1781231450000,-181.0,0.00034129,30]
[424881538,1781231450000,-155.0,0.00034129,30]
[424881536,1781231450000,-243.0,0.00034129,30]
[424881540,1781231450000,-907.0,0.00034162,30]
[424881534,1781231450000,-244.0,0.00034129,30]
[424881542,1781231450000,-175.0,0.00034162,30]
[424881545,1781231450000,-155.0,0.00034162,30]
[424881547,1781231450000,-347.0,0.00034162,30]
[424881549,1781231450000,-222.0,0.00034162,30]
[424881554,1781231450000,-230.84,0.00034176,7]
[424881551,1781231450000,-150.0,0.00034163,120]
[424881556,1781231450000,-150.0,0.00034179,120]
[424881567,1781231450000,-150.0,0.00034226,30]
[424881560,1781231450000,-167.68,0.000342,30]
[424881558,1781231450000,-633.3,0.00034182,7]
[424881561,1781231450000,-150.0,0.00034203,120]
[424881571,1781231450000,-1570.0,0.00034247,30]